bitfinex/quotes_ETHUSD_20250403
["timestamp","ask_amount","ask_price","bid_price","bid_amount"]
[1743702367023,0.7699,1780.4,1780.3,0.17559321]
[1743702367626,0.79904477,1780.4,1780.3,0.17559321]
[1743702367867,6.41575477,1780.4,1780.3,0.17559321]
[1743702368023,13.05810293,1780.4,1780.1,0.22559321]
[1743702368225,5.61704,1780.3,1780.1,0.22559321]
[1743702368450,13.02895816,1780.4,1780.1,0.22559321]
[1743702368651,0.02914477,1780.2,1780.1,0.22559321]
[1743702368871,0.02914477,1780.2,1780.1,0.05]
[1743702370560,0.02914477,1780.2,1780.1,5.66766]
[1743702370745,0.02914477,1780.2,1780.1,0.05]
[1743702371868,16.96923693,1780.2,1780.1,0.05]
[1743702372640,19.96923693,1780.2,1780.1,0.05]
[1743702372833,20.78503693,1780.2,1780.1,0.05]
[1743702373233,45.66647593,1780.2,1780.1,0.05]
[1743702373437,42.59295693,1780.2,1780.1,0.05]
[1743702373755,37.46237293,1780.2,1780.1,0.05]
[1743702374073,32.89481093,1780.2,1780.1,0.05]
[1743702374270,20.78503693,1780.2,1780.1,0.05]
[1743702375053,17.22041645,1780.2,1780.1,0.05]
[1743702375476,20.22041645,1780.2,1780.1,0.05]
[1743702375680,15.37228477,1780.2,1780.1,0.05]
[1743702376386,20.74698769,1780.2,1780.1,0.05]
[1743702376739,39.83589776,1780.2,1780.1,0.05]
[1743702376967,43.55053816,1780.2,1780.1,0.05]
[1743702377672,43.55053816,1780.2,1780.1,1e-05]
[1743702378467,49.16953816,1780.2,1780.1,1e-05]
[1743702378675,50.58139316,1780.2,1780.1,1e-05]
[1743702379254,45.30581116,1780.2,1780.1,1e-05]
[1743702379447,32.48656109,1780.2,1780.1,1e-05]
[1743702380277,5.61976,1779.5,1779.2,0.8097]
[1743702380472,11.52976,1779.5,1779.2,0.8097]
[1743702380656,0.02914477,1779.4,1779.2,0.8097]
[1743702380864,0.02914477,1779.4,1779.3,6.97758]
[1743702381066,0.02914477,1779.4,1779.3,7.03377513]
[1743702381458,0.02914477,1779.4,1779.3,6.97758]
[1743702382290,5.91,1780.3,1780.0,6.44008]
[1743702382484,5.91,1780.3,1780.1,5.61753]
[1743702382786,5.91,1780.3,1780.2,5.61734]
[1743702383184,5.91,1780.6,1780.4,5.61668]
[1743702383394,5.91,1780.6,1780.3,5.61702]
[1743702383566,5.91,1780.6,1780.3,11.23404]
[1743702383887,5.91,1780.6,1780.2,7.290787]
[1743702384093,5.91,1780.6,1780.2,12.907947]
[1743702384251,5.91,1780.6,1780.3,5.61692]
[1743702384452,5.91,1780.6,1780.3,6.9075967]
[1743702384886,11.52608,1780.6,1780.3,1.2907567]
[1743702385102,11.52608,1780.6,1780.2,11.78456]
[1743702385257,11.52608,1780.6,1780.2,6.16723]
[1743702385599,17.14239,1780.6,1780.2,5.61723]
[1743702385782,6.3918,1780.5,1780.1,5.61757]
[1743702385972,7.62198,1780.5,1780.1,5.61757]
[1743702386287,5.61683,1780.4,1780.0,17.69878]
[1743702386587,5.61683,1780.4,1780.1,5.61764]
[1743702387288,5.61683,1780.4,1780.0,6.43996]
[1743702387491,5.61717,1780.3,1779.9,5.61826]
[1743702387871,5.61683,1780.4,1780.0,5.61783]
[1743702388073,11.23373,1780.4,1780.0,5.61783]
[1743702388480,5.61683,1780.4,1780.0,5.61783]
[1743702388893,11.23378,1780.4,1780.0,5.61783]
[1743702389091,5.61703,1780.3,1780.0,5.61783]
[1743702389258,5.61703,1780.3,1779.9,5.61812]
[1743702389457,5.61703,1780.3,1779.9,12.440309]
[1743702389660,5.61703,1780.3,1779.9,6.822149]
[1743702389860,6.03265211,1780.3,1779.9,6.822149]
[1743702390067,6.03265211,1780.3,1779.9,12.440339]
[1743702390287,6.03265211,1780.3,1779.9,12.440299]
[1743702390495,11.64990211,1780.3,1779.9,6.822149]
[1743702390695,5.61755,1780.2,1779.8,6.42218]
[1743702390899,5.61755,1780.2,1779.6,6.39767]
[1743702390900,5.61826,1780.0,1779.6,6.39767]
[1743702391067,5.61829,1779.9,1779.5,5.61945]
[1743702391268,11.2368,1779.9,1779.5,5.61945]
[1743702391496,1.12368,1779.9,1779.4,6.39832]
[1743702391663,11.23718,1779.9,1779.5,5.61941]
[1743702391864,6.03765871,1779.9,1779.5,11.23886]
[1743702392186,6.03765871,1779.9,1779.6,5.61922]
[1743702392388,6.39786,1780.1,1779.7,0.55]
[1743702392569,11.52746,1780.2,1779.9,5.61813]
[1743702392769,13.623282,1780.2,1779.8,6.39178]
[1743702392969,5.61781,1780.1,1779.8,6.39178]
[1743702393303,17.145,1780.2,1779.8,6.39178]
[1743702393597,5.61771,1780.1,1779.8,6.39174]
[1743702394597,17.1451,1780.2,1779.8,12.01024]
[1743702395399,5.91,1780.2,1780.0,5.61795]
[1743702395700,5.91,1780.2,1780.0,5.61787]
[1743702395871,5.91,1780.2,1780.0,5.61785]
[1743702397001,11.52738,1780.2,1779.9,0.17563255]
[1743702397297,5.61797,1780.0,1779.9,0.17563255]
[1743702397497,9.821528,1780.0,1779.9,0.17563255]
[1743702398495,5.61839,1779.9,1779.6,5.61922]
[1743702398993,5.61839,1779.9,1779.5,5.79506255]
[1743702399183,11.23698,1779.9,1779.5,5.79505255]
[1743702399383,5.61869,1779.8,1779.5,0.17563255]
[1743702399583,6.39939,1779.8,1779.5,0.17563255]
[1743702399993,6.39939,1779.8,1779.5,0.35130625]
[1743702400774,6.39939,1779.8,1779.5,0.1756737]
[1743702400976,5.61897,1779.7,1779.5,0.1756737]
[1743702401281,5.61897,1779.7,1779.4,5.79537255]
[1743702401676,5.97926264,1779.7,1779.4,5.79537255]
[1743702401877,5.97926264,1779.7,1779.4,11.41510255]
[1743702402101,5.97926264,1779.7,1779.4,5.79536255]
[1743702402605,5.61934,1779.6,1779.4,0.17563255]
[1743702402908,11.23886,1779.6,1779.4,0.17563255]
[1743702403420,11.23886,1779.6,1779.3,0.17563255]
[1743702404107,11.23936,1779.5,1779.3,0.17563255]
[1743702404272,17.14936,1779.5,1779.2,5.79602255]
[1743702404475,11.52964,1779.5,1779.2,5.79602255]
[1743702404898,11.52964,1779.5,1779.2,0.17563255]
[1743702405087,11.52964,1779.5,1779.2,5.97179303]
[1743702407509,5.91,1779.5,1779.2,11.59216303]
[1743702407713,11.52972,1779.5,1779.2,5.97170303]
[1743702409007,0.79,1779.4,1779.2,5.97170303]
[1743702409208,6.40999,1779.4,1779.2,0.35133303]
[1743702409512,11.52972,1779.5,1779.2,5.97181303]
[1743702410016,17.14942,1779.5,1779.2,0.17570048]
[1743702410310,11.5297,1779.5,1779.1,11.46700255]
[1743702410512,11.5297,1779.5,1779.2,5.62046]
[1743702411079,11.5297,1779.5,1779.2,5.79609255]
[1743702411281,11.5297,1779.5,1779.2,11.41647255]
[1743702411478,11.5297,1779.5,1779.2,5.79601255]
[1743702412109,17.14942,1779.5,1779.2,0.17563255]
[1743702412311,11.5297,1779.5,1779.1,11.29145]
[1743702412484,11.5297,1779.5,1779.1,11.29142]
[1743702412687,17.14939,1779.5,1779.2,5.62045]
[1743702412887,17.1494,1779.5,1779.2,5.62045]
[1743702413158,11.52969,1779.5,1779.2,5.62045]
[1743702415621,5.91,1779.5,1779.4,5.61987]
[1743702417132,5.85043127,1779.5,1779.4,5.61987]
[1743702417428,0.7514,1780.1,1779.7,0.7915]
[1743702417593,5.85043127,1780.2,1780.0,5.61787]
[1743702417799,12.21859127,1780.4,1780.0,5.61782]
[1743702417998,5.61704,1780.3,1780.0,6.37342]
[1743702418198,6.60183127,1780.4,1780.1,5.61751]
[1743702418399,6.60183127,1780.4,1780.0,7.627605]
[1743702418400,12.21867127,1780.4,1780.0,7.627605]
[1743702418630,12.21867127,1780.4,1780.0,13.42110755]
[1743702418826,12.21867127,1780.4,1780.1,5.61765]
[1743702419011,5.85043127,1780.4,1780.1,5.6175]
[1743702419212,5.85043127,1780.4,1780.2,5.61733]
[1743702419386,5.85043127,1780.4,1780.1,5.79313255]
[1743702420290,0.02914238,1780.3,1780.1,11.41068255]
[1743702420825,0.02914238,1780.3,1780.1,5.79313255]
[1743702421028,0.02914238,1780.3,1780.1,11.41067255]
[1743702421385,0.02914238,1780.3,1780.2,5.61734]
[1743702421594,0.02914238,1780.3,1780.2,6.16734]
[1743702422511,0.02914238,1780.3,1780.2,6.95324]
[1743702422716,0.02914238,1780.3,1780.2,7.12887255]
[1743702423238,0.02914238,1780.3,1780.2,7.18503895]
[1743702423420,0.02914238,1780.3,1780.2,8.59949722]
[1743702423724,0.02914238,1780.3,1780.2,8.54333082]
[1743702424127,0.02914238,1780.3,1780.2,7.99333082]
[1743702424324,0.02914238,1780.3,1780.2,8.54333082]
[1743702424699,0.02914238,1780.3,1780.2,8.59949628]
[1743702424900,0.02914238,1780.3,1780.2,11.54333082]
[1743702425534,5.61453,1781.1,1780.8,5.6154]
[1743702426237,6.42275,1781.2,1780.8,5.61531]
[1743702426437,9.42277,1781.2,1780.8,5.61542]
[1743702426639,5.6146,1781.1,1780.7,11.989]
[1743702426959,10.95005813,1781.2,1780.4,6.142]
[1743702426960,0.7922,1780.9,1780.4,6.142]
[1743702427158,5.61611,1780.6,1780.2,5.61722]
[1743702427360,5.61577,1780.7,1780.3,5.617]
[1743702427652,6.738897,1780.7,1780.3,5.6169]
[1743702427823,5.6161,1780.6,1780.3,5.6169]
[1743702428345,7.16561117,1780.7,1780.3,11.23381]
[1743702428505,12.78156117,1780.7,1780.3,5.6169]
[1743702428908,7.16561117,1780.7,1780.3,11.23379]
[1743702429110,7.16561117,1780.7,1780.3,11.23378]
[1743702429310,0.42671417,1780.7,1780.4,5.61665]
[1743702429506,11.23121,1780.8,1780.4,5.61665]
[1743702429710,5.61594,1780.7,1780.3,5.61699]
[1743702429910,11.23199,1780.7,1780.3,5.61699]
[1743702430107,5.61613,1780.6,1780.3,5.61699]
[1743702430311,5.61613,1780.6,1780.2,5.61733]
[1743702430523,0.8157,1780.5,1780.2,5.61718]
[1743702430725,5.61588,1780.7,1780.3,5.61693]
[1743702430932,0.8157,1780.7,1780.4,5.61652]
[1743702431132,0.8157,1780.7,1780.5,5.61634]
[1743702431333,5.6156,1780.8,1780.5,5.61634]
[1743702431657,5.61577,1780.7,1780.4,5.61652]
[1743702431853,5.61577,1780.7,1780.3,6.37112]
[1743702432056,5.61622,1780.6,1780.3,5.61692]
[1743702433160,0.7539,1780.5,1780.2,7.436289]
[1743702433330,5.61671,1780.4,1780.1,6.37172]
[1743702433533,5.61671,1780.4,1780.1,12.626452]
[1743702433731,12.22092127,1780.5,1780.1,7.008892]
[1743702433951,17.83750127,1780.5,1780.1,12.626422]
[1743702434329,17.83750127,1780.5,1780.1,12.626442]
[1743702434651,5.61676,1780.4,1780.0,5.61788]
[1743702434890,0.7942,1780.1,1779.7,5.61887]
[1743702435026,6.41191,1780.1,1779.7,5.61882]
[1743702435225,0.7942,1780.1,1779.6,6.39163]
[1743702435465,8.61739,1780.2,1779.8,5.61838]
[1743702435631,14.23495,1780.2,1779.8,5.61838]
[1743702435841,16.88577813,1780.2,1779.8,5.61838]
[1743702436174,16.88573813,1780.2,1779.8,11.23686]
[1743702436379,16.88573813,1780.2,1779.8,5.61838]
[1743702436583,16.88573813,1780.2,1779.7,5.61887]
[1743702436584,11.23554,1780.1,1779.7,11.23768]
[1743702436888,6.38921,1780.0,1779.6,6.3916]
[1743702437084,0.7711,1779.8,1779.3,5.62014]
[1743702437286,0.7711,1779.8,1779.1,0.823]
[1743702437287,0.7711,1779.8,1779.4,5.61975]
[1743702437454,6.38993,1779.8,1779.4,5.61975]
[1743702437786,5.61948,1779.6,1779.2,6.76703926]
[1743702437936,5.61948,1779.6,1779.3,5.62018]
[1743702438133,5.61896,1779.7,1779.4,5.61986]
[1743702438343,6.80366244,1779.8,1779.4,11.23962]
[1743702438574,6.80366244,1779.8,1779.5,5.61941]
[1743702438773,6.38974,1779.8,1779.5,11.23881]
[1743702439092,0.7711,1779.8,1779.5,11.2388]
[1743702439389,14.46874127,1779.9,1779.6,5.61912]
[1743702440277,16.5580954,1779.9,1779.4,7.522028]
[1743702440447,5.6187,1779.8,1779.4,7.522028]
[1743702440646,5.6187,1779.8,1779.5,5.61954]
[1743702440847,14.46875127,1779.9,1779.5,11.29510968]
[1743702441163,14.46875127,1779.9,1779.5,11.23892]
[1743702441501,14.89350541,1779.9,1779.5,11.23892]
[1743702441792,14.89350541,1779.9,1779.5,11.23882]
[1743702441987,5.61879,1779.8,1779.4,13.141868]
[1743702442149,14.89349541,1779.9,1779.6,5.61918]
[1743702442490,14.89349541,1779.9,1779.5,5.61944]
[1743702442491,20.51195541,1779.9,1779.5,5.61944]
[1743702442856,20.51195541,1779.9,1779.5,5.61941]
[1743702443200,5.61893,1779.7,1779.4,6.39811]
[1743702443495,5.61867,1779.8,1779.4,2.09131885]
[1743702443648,5.61944,1779.6,1779.4,0.83449285]
[1743702443951,11.23831,1779.7,1779.4,0.7783]
[1743702444155,5.61913,1779.7,1779.3,6.17008]
[1743702444393,5.61913,1779.7,1779.1,5.67075]
[1743702444394,5.61957,1779.5,1779.1,5.67075]
[1743702444550,5.61988,1779.4,1779.1,5.67075]
[1743702444747,6.42592,1779.3,1779.1,0.05]
[1743702445053,5.6205,1779.2,1779.1,0.05]
[1743702446696,6.84437855,1779.3,1779.1,0.05]
[1743702447288,5.85043127,1779.4,1779.1,5.67068]
[1743702447496,11.47031127,1779.4,1779.1,5.67068]
[1743702447669,17.09041127,1779.4,1779.1,1.179176]
[1743702447863,5.62023,1779.3,1779.1,1.179176]
[1743702448592,5.62023,1779.3,1779.1,0.05]
[1743702448593,5.6205,1779.2,1779.1,0.05]
[1743702448973,5.62023,1779.3,1779.1,0.05]
[1743702449588,5.85043127,1779.4,1779.1,0.05]
[1743702449779,5.61907,1779.7,1779.3,6.17018]
[1743702450093,11.23765,1779.8,1779.4,6.236748]
[1743702450267,5.61877,1779.8,1779.4,6.236748]
[1743702450468,6.38161,1779.9,1779.4,6.236748]
[1743702450469,5.61909,1779.7,1779.4,0.617018]
[1743702450799,5.61866,1779.8,1779.4,0.617018]
[1743702451002,6.0352751,1779.8,1779.4,5.67589283]
[1743702451178,5.61866,1779.8,1779.4,5.6197]
[1743702451865,5.61893,1779.7,1779.4,5.61983]
[1743702452298,5.61893,1779.7,1779.4,5.61985]
[1743702452501,5.61893,1779.7,1779.3,6.17007]
[1743702452665,5.61925,1779.6,1779.4,0.617007]
[1743702452873,0.8105,1779.7,1779.2,0.7584]
[1743702453103,5.61966,1779.5,1779.2,0.7584]
[1743702453397,5.62001,1779.4,1779.1,0.6]
[1743702453567,5.61956,1779.5,1779.1,6.27678026]
[1743702453768,5.61956,1779.5,1779.2,5.62039]
[1743702453982,5.85043127,1779.6,1779.3,5.62015]
[1743702454194,5.85043127,1779.6,1779.3,6.39805]
[1743702454395,5.61972,1779.5,1779.1,6.4487]
[1743702454602,5.61991,1779.4,1779.1,6.4487]
[1743702454780,5.61991,1779.4,1779.1,6.44874]
[1743702455600,5.61991,1779.4,1779.1,0.05]
[1743702456502,11.24005,1779.4,1779.1,0.05]
[1743702456681,11.23995,1779.4,1779.1,0.05]
[1743702457023,6.38169,1779.3,1779.1,0.05]
[1743702457180,12.00207,1779.3,1779.1,0.05]
[1743702457384,6.38168,1779.3,1779.1,0.05]
[1743702457566,0.7613,1779.3,1779.1,0.05]
[1743702458008,5.62,1779.4,1779.1,5.67078]
[1743702458407,5.62,1779.4,1779.1,12.420636]
[1743702458629,5.61991,1779.4,1779.1,6.799856]
[1743702458772,5.6202,1779.3,1779.1,0.05]
[1743702459387,11.24064,1779.3,1779.1,0.05]
[1743702459818,5.6202,1779.3,1779.1,0.05]
[1743702460712,11.24056,1779.3,1779.1,0.05]
[1743702460930,5.6205,1779.2,1779.1,0.05]
[1743702461927,6.74457,1779.2,1779.1,0.05]
[1743702462140,21.65940151,1779.2,1779.1,0.05]
[1743702463392,27.25540151,1779.2,1779.1,0.05]
[1743702464394,16.80340225,1779.2,1779.1,0.05]
[1743702464830,7.05883225,1779.2,1779.1,0.05]
[1743702464995,6.26923225,1779.2,1779.1,0.05]
[1743702465194,11.88973225,1779.2,1779.1,0.15555044]
[1743702465394,11.88973225,1779.2,1779.1,0.05]
[1743702465594,6.26923225,1779.2,1779.1,0.16192875]
[1743702465829,5.85043127,1779.2,1779.1,0.05]
[1743702466037,5.85043127,1779.2,1779.1,0.16192875]
[1743702466357,5.85043127,1779.2,1779.1,6.61583875]
[1743702466505,5.85043127,1779.5,1779.2,11.24082]
[1743702466703,0.831,1779.8,1779.6,5.61914]
[1743702466954,5.85043127,1779.9,1779.7,0.11192875]
[1743702467110,5.85043127,1779.9,1779.6,11.23824]
[1743702467312,5.85043127,1779.9,1779.7,5.72885829]
[1743702467514,5.85043127,1779.9,1779.7,0.11000829]
[1743702468006,5.85043127,1779.9,1779.8,0.11000829]
[1743702468432,5.85043127,1779.9,1779.4,1.0087825]
[1743702468433,12.29910127,1780.1,1779.7,5.61889]
[1743702468643,3.0,1780.0,1779.8,0.11000829]
[1743702468845,17.91698127,1780.1,1779.8,0.11000829]
[1743702469012,12.29910127,1780.1,1779.8,0.11000829]
[1743702469215,17.91694127,1780.1,1779.7,5.61882]
[1743702469561,3.0,1780.0,1779.8,0.561882]
[1743702470245,8.61815,1780.0,1779.6,5.79484829]
[1743702470462,14.23642,1780.0,1779.7,0.17566829]
[1743702470657,5.61829,1779.9,1779.7,0.17566829]
[1743702470860,6.4299,1779.8,1779.7,0.17566829]
[1743702471334,12.28033127,1779.8,1779.7,0.17566829]
[1743702471541,14.0701934,1779.8,1779.7,0.17566829]
[1743702471851,5.61899,1779.7,1779.5,0.17566829]
[1743702472069,12.28033127,1779.8,1779.5,0.17566829]
[1743702472228,6.66173127,1779.8,1779.5,5.79500829]
[1743702472434,5.85043127,1779.8,1779.6,5.61913]
[1743702472629,5.85043127,1779.8,1779.6,1.14141383]
[1743702473176,5.61933,1779.6,1779.4,0.17566829]
[1743702473542,5.61955,1779.5,1779.4,0.17566829]
[1743702473876,14.46998127,1779.5,1779.4,0.17566829]
[1743702474229,5.6201,1779.4,1779.1,0.05]
[1743702474429,5.6202,1779.3,1779.1,0.05]
[1743702474868,5.6205,1779.2,1779.1,0.05]
[1743702475071,12.05419,1779.3,1779.1,0.05]
[1743702475745,5.6205,1779.2,1779.1,0.05]
[1743702476380,8.6205,1779.2,1779.1,0.05]
[1743702476578,16.01873646,1779.2,1779.1,0.05]
[1743702476980,21.63673646,1779.2,1779.1,0.05]
[1743702477380,39.10319146,1779.2,1779.1,0.05]
[1743702477568,6.37876,1778.8,1778.7,0.17573762]
[1743702477765,52.00915997,1778.8,1778.7,0.17573762]
[1743702478117,57.31623296,1778.8,1778.7,0.17573762]
[1743702478610,5.62303,1778.4,1778.3,0.17566829]
[1743702478811,6.42246,1778.2,1778.1,0.05]
[1743702479311,0.7988,1778.2,1778.1,0.05]
[1743702479615,1.21032569,1778.2,1778.1,0.16199582]
[1743702479820,3.0,1778.3,1778.1,0.05]
[1743702479982,3.0,1778.3,1778.1,0.17259124]
[1743702480178,3.0,1778.3,1778.1,0.05]
[1743702480374,8.62334,1778.3,1778.2,0.12333554]
[1743702480581,3.0,1778.3,1778.2,0.12333554]
[1743702480987,5.85043127,1778.4,1778.2,0.12333554]
[1743702481395,5.85043127,1778.4,1778.2,1.89909355]
[1743702481597,3.0,1778.6,1778.3,5.74644554]
[1743702481784,8.62244,1778.6,1778.3,0.12333554]
[1743702482005,5.62291,1778.5,1778.3,0.12333554]
[1743702482192,6.03865344,1778.5,1778.3,0.12333554]
[1743702482910,3.0,1778.6,1778.3,11.37001554]
[1743702483327,3.0,1778.6,1778.3,5.74667554]
[1743702483721,8.6224,1778.6,1778.3,5.74667554]
[1743702484193,16.25451513,1778.6,1778.3,0.12333554]
[1743702484718,5.62303,1778.4,1778.3,0.12333554]
[1743702484888,11.47346127,1778.4,1778.1,0.05]
[1743702485219,5.62347,1778.3,1778.2,0.12172301]
[1743702485886,17.09674127,1778.4,1778.2,0.12172301]
[1743702486087,18.92846581,1778.4,1778.2,0.12172301]
[1743702486285,5.62334,1778.3,1778.2,0.12172301]
[1743702486485,13.30521581,1778.4,1778.2,0.12172301]
[1743702486682,5.62334,1778.3,1778.2,0.12172301]
[1743702486914,14.25634,1778.3,1778.2,0.12172301]
[1743702487126,8.62366,1778.2,1778.1,0.05]
[1743702487312,8.62366,1778.2,1778.1,0.17172301]
[1743702487489,8.62366,1778.2,1778.1,0.05]
[1743702487689,8.62366,1778.2,1778.1,0.17172301]
[1743702487924,8.62366,1778.2,1778.1,0.05]
[1743702488105,10.17146519,1778.2,1778.1,0.05]
[1743702488426,16.02189646,1778.2,1778.1,0.05]
[1743702488985,39.01835116,1778.2,1778.1,0.05]
[1743702489289,37.25295116,1778.2,1778.1,0.05]
[1743702489516,0.7719,1777.9,1777.3,5.62632]
[1743702489693,14.25082,1777.7,1777.3,5.62632]
[1743702489889,1.425082,1777.6,1777.2,0.7743]
[1743702490223,0.02914476,1777.6,1777.5,5.62576]
[1743702490604,0.02914476,1777.6,1777.5,6.39146]
[1743702490927,0.02914476,1777.6,1777.5,6.99771376]
[1743702491114,0.02914476,1777.6,1777.5,7.1230351]
[1743702491424,0.02914476,1777.6,1777.5,8.96055061]
[1743702491604,0.02914476,1777.6,1777.5,8.90429685]
[1743702492114,0.02914476,1777.6,1777.5,8.9605487]
[1743702492490,0.02914476,1777.6,1777.5,8.90429685]
[1743702494114,0.02914476,1777.6,1777.5,8.96054682]
[1743702495431,0.02914476,1777.6,1777.5,8.90429685]
[1743702497239,0.02914476,1777.6,1777.5,8.96054683]
[1743702497927,0.02914476,1777.6,1777.5,8.90429685]
[1743702498233,0.02914476,1777.6,1777.5,5.75108134]
[1743702498733,0.02914476,1777.6,1777.5,0.12532134]
[1743702501414,0.82834476,1777.6,1777.5,0.12532134]
[1743702501632,0.82834476,1777.6,1777.3,5.62637]
[1743702501816,0.82834476,1777.6,1777.5,0.12532134]
[1743702502015,2.65819556,1777.6,1777.3,11.25272]
[1743702502245,0.82834476,1777.6,1777.5,0.12532134]
[1743702502431,0.82834476,1777.6,1777.3,11.25272]
[1743702502747,6.45390476,1777.6,1777.3,5.62636]
[1743702502934,6.45390476,1777.6,1777.4,0.12532134]
[1743702503115,0.82834476,1777.6,1777.3,11.25273]
[1743702503449,0.82834476,1777.6,1777.4,0.12532134]
[1743702503646,8.28381456,1777.6,1777.4,0.12532134]
[1743702503816,8.28381456,1777.6,1777.3,5.6264]
[1743702504015,8.28381456,1777.6,1777.5,0.12532134]
[1743702504223,2.65820456,1777.6,1777.3,11.2528]
[1743702504419,2.65820456,1777.6,1777.5,0.12532134]
[1743702504628,2.65820456,1777.6,1777.3,11.25275]
[1743702504921,2.65820456,1777.6,1777.3,11.4286437]
[1743702505117,2.65820456,1777.6,1777.4,0.12532134]
[1743702505118,5.62587,1777.5,1777.4,0.12532134]
[1743702505318,5.62587,1777.5,1777.3,0.1758937]
[1743702505319,13.22301758,1777.5,1777.3,0.1758937]
[1743702505509,13.25216234,1777.5,1777.4,0.12581793]
[1743702505711,13.25216234,1777.5,1777.3,0.1758937]
[1743702506041,7.62602234,1777.5,1777.4,0.12581793]
[1743702506209,2.00015234,1777.5,1777.4,0.12581793]
[1743702506411,2.00015234,1777.5,1777.2,11.4293837]
[1743702506629,0.02914476,1777.5,1777.4,0.12581793]
[1743702506839,0.02914476,1777.5,1777.4,5.62619]
[1743702507035,0.02914476,1777.5,1777.4,5.75200793]
[1743702507707,0.02914476,1777.5,1777.4,5.92790163]
[1743702507939,0.02914476,1777.5,1777.4,6.10378645]
[1743702508844,0.02914476,1777.5,1777.4,0.47759645]
[1743702509744,0.02914476,1777.5,1777.4,0.30171163]
[1743702512345,0.02914476,1777.5,1777.4,5.92790163]
[1743702512648,0.02914476,1777.5,1777.4,6.10378878]
[1743702513145,0.02914476,1777.5,1777.4,0.47759878]
[1743702514042,0.02914476,1777.5,1777.4,0.30171163]
[1743702515015,0.02914476,1777.5,1777.4,0.47759878]
[1743702515773,1.98605936,1777.5,1777.4,0.47759878]
[1743702515919,7.61192936,1777.5,1777.4,0.47759878]
[1743702516313,7.61192936,1777.5,1777.4,0.30171163]
[1743702517571,7.61192936,1777.5,1777.4,0.12581793]
[1743702517866,5.62621,1777.4,1777.2,0.17588715]
[1743702518067,0.562621,1777.3,1777.2,0.17588715]
[1743702518268,0.59176576,1777.3,1777.2,0.17588715]
[1743702519072,0.59176576,1777.3,1777.2,0.35180187]
[1743702519229,6.21827576,1777.3,1777.2,0.35180187]
[1743702519571,11.90798609,1777.3,1777.2,0.17591472]
[1743702519858,11.90798609,1777.3,1777.1,0.05]
[1743702520827,1.41426576,1777.3,1777.1,0.05]
[1743702521229,1.41426576,1777.3,1777.2,0.13239497]
[1743702521461,7.21469703,1777.3,1777.2,0.13239497]
[1743702521866,7.21469703,1777.3,1777.2,0.30831351]
[1743702522158,5.82957603,1777.3,1777.2,5.93513351]
[1743702522528,5.82957603,1777.3,1777.2,6.75583351]
[1743702522727,5.82957603,1777.3,1777.2,7.30583351]
[1743702522962,5.82957603,1777.3,1777.2,7.48175913]
[1743702523264,5.82957603,1777.3,1777.2,8.79764304]
[1743702524066,0.02914476,1777.3,1777.2,8.62171742]
[1743702524261,0.02914476,1777.3,1777.2,8.85386056]
[1743702525736,0.02914476,1777.3,1777.2,8.79760039]
[1743702526030,0.02914476,1777.3,1777.2,7.48171648]
[1743702526235,0.02914476,1777.3,1777.2,7.53797666]
[1743702528837,0.02914476,1777.3,1777.2,12.34892681]
[1743702530371,4.76e-06,1777.3,1777.2,15.34892681]
[1743702530666,5.80043127,1777.9,1777.8,5.62492]
[1743702530875,5.80043127,1777.9,1777.7,12.0647]
[1743702531071,5.80043127,1777.9,1777.8,0.12860892]
[1743702531266,5.80043127,1777.9,1777.8,5.75352892]
[1743702531782,5.80043127,1777.9,1777.8,0.30452746]
[1743702531980,5.80043127,1777.9,1777.8,0.48041043]
[1743702532595,6.98573905,1777.9,1777.8,0.48041043]
[1743702533095,12.61034905,1777.9,1777.8,0.30449189]
[1743702533286,13.41354905,1777.9,1777.8,0.30449189]
[1743702533685,13.41354905,1777.9,1777.8,0.12860892]
[1743702536691,11.25018,1777.8,1777.6,0.17591854]
[1743702536859,13.15409191,1777.8,1777.6,0.17591854]
[1743702537058,13.15409191,1777.8,1777.4,5.80194297]
[1743702537293,13.32941318,1777.8,1777.5,0.17588297]
[1743702537600,7.70434318,1777.8,1777.5,0.17588297]
[1743702537754,5.80043127,1777.8,1777.6,5.62546]
[1743702537957,5.80043127,1777.8,1777.7,6.38204]
[1743702538184,5.80043127,1777.8,1777.7,6.5578964]
[1743702539261,5.80043127,1777.8,1777.7,0.1758564]
[1743702539456,5.80043127,1777.8,1777.7,0.35173937]
[1743702539657,5.80043127,1777.8,1777.7,5.97697937]
[1743702540592,5.80043127,1777.8,1777.7,0.35173937]
[1743702540793,6.9429354,1777.8,1777.7,0.35173937]
[1743702541094,13.38920254,1777.8,1777.7,0.1758564]
[1743702542105,19.01444254,1777.8,1777.5,0.1758564]
[1743702542591,13.38920254,1777.8,1777.5,5.8017164]
[1743702542798,6.62177841,1777.8,1777.5,5.8017164]
[1743702542999,12.24672841,1777.8,1777.5,0.1758564]
[1743702543597,12.24672841,1777.8,1777.6,0.1758564]
[1743702543805,5.82957841,1777.8,1777.6,0.1758564]
[1743702544390,5.82957841,1777.8,1777.6,5.8012664]
[1743702544606,5.82957841,1777.8,1777.6,6.78570878]
[1743702544793,5.82957841,1777.8,1777.7,5.62524]
[1743702545366,5.82957841,1777.8,1777.7,5.80109918]
[1743702545966,5.82957841,1777.8,1777.7,5.9769806]
[1743702546594,5.82957841,1777.8,1777.7,6.7344806]
[1743702546781,5.82957841,1777.8,1777.7,5.9769806]
[1743702547231,16.32170874,1777.8,1777.7,0.3517406]
[1743702547413,18.59174361,1777.8,1777.7,0.3517406]
[1743702547768,13.72453328,1777.8,1777.7,0.3517406]
[1743702548004,13.72453328,1777.8,1777.7,0.17585918]
[1743702548209,18.59174361,1777.8,1777.7,0.30229642]
[1743702548381,5.62524,1777.7,1777.6,0.17585918]
[1743702548592,5.62524,1777.7,1777.6,0.30229642]
[1743702548793,5.65438714,1777.7,1777.6,0.30229642]
[1743702549400,0.02914714,1777.7,1777.6,0.30229642]
[1743702549723,0.02914714,1777.7,1777.6,5.75199724]
[1743702549883,0.02914714,1777.7,1777.6,7.52080496]
[1743702550209,0.02914714,1777.7,1777.6,1.52112638]